bitfinex-derivatives/quotes_ETHF0:USTF0_20250528
["timestamp","ask_amount","ask_price","bid_price","bid_amount"]
[1748460906507,1.8936,2639.8,2639.0,3.822]
[1748460906810,3.2078,2639.5,2639.0,3.822]
[1748460907006,4.5084,2639.4,2638.7,17.543]
[1748460907202,0.75764,2639.2,2639.0,0.75766]
[1748460907503,1.3304,2639.1,2639.0,0.75766]
[1748460908010,0.75768,2639.0,2638.8,0.00568107]
[1748460908199,1.3304,2639.1,2638.8,0.76341107]
[1748460908200,1.3304,2638.9,2638.8,0.76341107]
[1748460910813,1.2716,2639.4,2639.3,0.75758]
[1748460911606,1.2716,2639.4,2639.3,3.96538]
[1748460911801,3.2078,2639.9,2639.8,0.75744]
[1748460912107,3.2078,2639.9,2639.8,0.07463908]
[1748460912108,3.96521,2639.9,2639.8,0.07463908]
[1748460912301,5.24471,2639.9,2639.8,0.07463908]
[1748460913712,5.24471,2639.9,2639.8,0.83207908]
[1748460914214,5.24471,2639.9,2639.8,0.07463908]
[1748460914407,5.24471,2639.9,2639.8,0.83207908]
[1748460914610,4.4873,2639.9,2639.8,1.13206742]
[1748460914809,4.4873,2639.9,2639.8,0.83207908]
[1748460915109,4.4873,2639.9,2639.8,1.13210431]
[1748460915309,4.4873,2639.9,2639.8,1.132106]
[1748460915503,4.4873,2639.9,2639.8,1.13205365]
[1748460916007,4.4873,2639.9,2639.8,0.83207908]
[1748460916210,5.24471,2639.9,2639.8,0.37461352]
[1748460916413,10.24471,2639.9,2639.8,0.37461352]
[1748460916616,0.75753,2639.6,2639.1,19.43911]
[1748460916913,0.75753,2639.6,2639.5,0.75751]
[1748460917113,0.75753,2639.6,2639.5,1.05750622]
[1748460917312,3.2078,2639.9,2639.8,0.75744]
[1748460917520,3.2078,2639.9,2639.8,1.05744358]
[1748460917916,3.96521,2639.9,2639.8,1.05743376]
[1748460918106,3.96521,2639.9,2639.8,0.83207908]
[1748460918312,3.96521,2639.9,2639.8,1.13211583]
[1748460918509,3.96521,2639.9,2639.8,1.13210903]
[1748460918714,3.96521,2639.9,2639.8,1.13209965]
[1748460919118,3.96521,2639.9,2639.8,1.1321496]
[1748460919419,3.96521,2639.9,2639.8,0.83207908]
[1748460919819,3.96521,2639.9,2639.8,1.12559628]
[1748460920011,3.96521,2639.9,2639.8,1.12531442]
[1748460920212,3.96521,2639.9,2639.8,0.83207908]
[1748460920718,3.96521,2639.9,2639.8,1.12540064]
[1748460920906,3.96521,2639.9,2639.8,0.07463908]
[1748460921223,3.96521,2639.9,2639.8,0.36796056]
[1748460921414,3.96521,2639.9,2639.8,0.36796821]
[1748460921718,3.96521,2639.9,2639.8,0.367971]
[1748460921915,8.96521,2639.9,2639.8,0.07463908]
[1748460922116,8.96521,2639.9,2639.8,0.36797818]
[1748460922513,8.96521,2639.9,2639.8,0.36800581]
[1748460922717,8.96521,2639.9,2639.8,0.07463908]
[1748460922910,8.96521,2639.9,2639.8,0.36806538]
[1748460923218,8.96521,2639.9,2639.8,0.07463908]
[1748460923416,8.96521,2639.9,2639.8,0.36817683]
[1748460923612,8.96521,2639.9,2639.8,0.36817764]
[1748460923821,8.96521,2639.9,2639.8,0.36818169]
[1748460924017,8.96521,2639.9,2639.8,0.3681835]
[1748460924319,3.96521,2639.9,2639.8,0.36819327]
[1748460924515,8.96521,2639.9,2639.8,0.36819218]
[1748460924717,8.96521,2639.9,2639.8,0.36819046]
[1748460924924,8.96521,2639.9,2639.8,0.07463908]
[1748460925116,8.96521,2639.9,2639.8,0.36819012]
[1748460925519,8.96521,2639.9,2639.8,0.07463908]
[1748460925726,8.96521,2639.9,2639.8,0.36832419]
[1748460926024,8.96521,2639.9,2639.8,0.36832614]
[1748460926223,8.96521,2639.9,2639.8,0.07463908]
[1748460926613,8.96521,2639.9,2639.8,0.36834334]
[1748460926818,8.96521,2639.9,2639.8,0.36834605]
[1748460927017,8.96521,2639.9,2639.8,0.07463908]
[1748460927218,8.96521,2639.9,2639.8,0.36834595]
[1748460927824,8.96521,2639.9,2639.8,0.36852151]
[1748460928017,8.96521,2639.9,2639.8,0.07463908]
[1748460928327,8.96521,2639.9,2639.8,0.36853765]
[1748460928620,8.96521,2639.9,2639.8,0.36853688]
[1748460928820,8.96521,2639.9,2639.8,0.07463908]
[1748460929522,8.96521,2639.9,2639.8,0.36880431]
[1748460929824,8.96521,2639.9,2639.8,0.07463908]
[1748460930126,8.96521,2639.9,2639.8,0.36880892]
[1748460930324,8.96521,2639.9,2639.8,0.07463908]
[1748460930529,8.96521,2639.9,2639.8,0.36922723]
[1748460930823,8.96521,2639.9,2639.8,0.36922936]
[1748460931025,8.96521,2639.9,2639.8,0.36922985]
[1748460931214,8.96521,2639.9,2639.8,0.07463908]
[1748460931518,8.96521,2639.9,2639.8,8.46e-06]
[1748460931718,9.95090591,2639.9,2639.8,8.46e-06]
[1748460932314,9.95090591,2639.9,2638.9,0.6201]
[1748460932315,0.75768,2639.0,2638.9,0.6201]
[1748460932526,0.75768,2639.0,2638.9,1.9308]
[1748460932717,0.75768,2639.0,2638.9,2.68851]
[1748460933330,0.75768,2639.0,2638.9,1.9308]
[1748460934425,0.75768,2639.0,2638.9,2.00543908]
[1748460935724,4.5366,2639.1,2638.9,2.00543908]
[1748460935924,3.82,2639.5,2639.2,0.75759]
[1748460936229,3.2078,2639.4,2638.9,0.69473908]
[1748460936422,0.75768,2639.1,2639.0,0.75766]
[1748460937326,0.75764,2639.2,2639.1,0.75762]
[1748460937732,0.75767,2639.1,2639.0,0.75764]
[1748460939033,0.75768,2639.0,2638.9,0.69473908]
[1748460940334,0.75768,2639.0,2638.9,0.07463908]
[1748460940531,2.09628,2639.0,2638.9,0.07463908]
[1748460941535,3.2078,2639.3,2638.9,0.07463908]
[1748460941728,0.75764,2639.2,2639.1,0.75762]
[1748460941931,0.75765,2639.1,2639.0,1.41096]
[1748460942234,0.75765,2639.1,2639.0,0.6533]
[1748460943034,2.07255,2639.2,2639.0,0.6533]
[1748460943226,0.75765,2639.1,2639.0,0.6533]
[1748460943736,0.75765,2639.1,2639.0,1.41095]
[1748460944438,0.75765,2639.1,2639.0,0.6533]
[1748460944832,0.75768,2639.0,2638.9,0.69133908]
[1748460945134,0.75768,2639.0,2638.8,0.00568107]
[1748460945135,8.2552,2639.0,2638.8,0.00568107]
[1748460945437,0.75796,2638.0,2637.9,3.01882814]
[1748460945642,3.2078,2638.0,2637.7,3.67672814]
[1748460945842,0.75802,2637.8,2637.7,0.6579]
[1748460946337,1.2264,2637.9,2637.7,0.6579]
[1748460946532,0.00568107,2638.0,2637.9,0.75799]
[1748460946726,3.21348107,2638.0,2637.5,3.02450921]
[1748460946931,2.0051,2637.9,2637.6,0.75806]
[1748460947138,2.0051,2637.9,2637.6,1.41596]
[1748460947345,2.0051,2637.9,2637.7,0.75805]
[1748460948249,2.0051,2637.9,2637.6,0.6579]
[1748460948445,1.2471,2637.9,2637.6,0.6579]
[1748460948646,0.75805,2637.7,2637.6,0.6579]
[1748460948836,3.2078,2637.7,2637.6,0.6579]
[1748460949039,0.75808,2637.6,2637.5,0.62648107]
[1748460949239,2.00518,2637.6,2637.5,0.00568107]
[1748460949845,2.67128,2637.6,2637.5,0.00568107]
[1748460950338,2.00518,2637.6,2637.5,0.00568107]
[1748460952647,1.2471,2637.6,2637.5,0.76379107]
[1748460952847,3.3215,2637.7,2637.6,0.75808]
[1748460953148,3.3215,2637.7,2637.5,0.76377107]
[1748460953343,2.05008,2637.6,2637.5,0.00568107]
[1748460953662,1.8954,2637.4,2636.4,1.89604]
[1748460953948,3.2078,2637.1,2636.8,0.75831]
[1748460954157,2.05027,2637.0,2636.8,0.75831]
[1748460954544,2.05027,2637.0,2636.9,0.75828]
[1748460954744,2.05027,2637.0,2636.8,0.75829]
[1748460954949,2.05027,2637.0,2636.7,0.00568107]
[1748460955154,1.292,2637.0,2636.9,0.75828]
[1748460955657,2.05027,2637.0,2636.8,0.75829]
[1748460955852,0.75828,2636.9,2636.8,1.2316]
[1748460956051,2.06468,2636.9,2636.8,1.2316]
[1748460956255,1.3064,2636.9,2636.8,1.2316]
[1748460956459,2.06468,2636.9,2636.8,1.2316]
[1748460956663,2.06468,2636.9,2636.8,1.98991]
[1748460956858,1.3064,2636.9,2636.8,1.98991]
[1748460957563,0.75831,2636.8,2636.7,0.76402107]
[1748460957763,3.96611,2636.8,2636.7,0.76402107]
[1748460958163,3.96611,2636.8,2636.7,0.00568107]
[1748460959369,0.75846,2636.3,2635.9,1.89642]
[1748460959559,0.75846,2636.3,2636.0,1.3157]
[1748460959756,1.335,2636.2,2636.1,0.7585]
[1748460960558,0.75854,2636.0,2635.9,0.00568107]
[1748460960767,3.96634,2636.0,2635.9,0.00568107]
[1748460961068,0.75867,2635.6,2635.1,1.89695]
[1748460961369,0.75873,2635.4,2635.2,1.9892]
[1748460961670,0.75873,2635.4,2634.6,3.79469]
[1748460961671,3.821,2635.3,2633.8,8.12453814]
[1748460961861,0.75893,2634.7,2633.9,3.79886]
[1748460962061,1.34959184,2634.6,2634.5,0.75897]
[1748460963067,1.34959184,2634.6,2633.9,0.6735]
[1748460963267,3.2078,2634.2,2634.0,1.2275]
[1748460963573,0.75923,2633.6,2633.2,0.75933]
[1748460963774,5.71973,2634.1,2633.1,3.2078]
[1748460963775,3.96702,2633.7,2633.3,0.75931]
[1748460964168,3.2078,2633.7,2633.4,1.98677]
[1748460964374,3.2078,2633.7,2633.1,3.2078]
[1748460964668,1.3439,2633.6,2633.2,1.2275]
[1748460964978,3.2078,2633.3,2632.5,3.2078]
[1748460965190,3.2078,2633.0,2632.5,3.2078]
[1748460965476,1.2965,2632.9,2632.6,2.04671]
[1748460965663,0.00569184,2633.2,2633.1,0.75937]
[1748460966068,1.2965,2633.5,2633.0,1.2872]
[1748460966269,3.2078,2634.0,2633.9,0.75914]
[1748460966469,7.0298,2634.3,2633.7,5.1058]
[1748460966671,3.2078,2634.3,2633.7,3.2078]
[1748460966873,0.632,2634.6,2633.7,0.75919]
[1748460967078,3.21349184,2634.4,2633.9,0.00569184]
[1748460967283,3.97250184,2634.4,2634.0,0.75909]
[1748460967574,1.2965,2634.3,2634.2,0.75906]
[1748460967779,1.2965,2634.3,2633.9,1.29289184]
[1748460967965,1.2965,2634.3,2634.2,0.75906]
[1748460968375,0.00569184,2634.4,2634.3,0.75903]
[1748460969471,0.00569184,2634.4,2634.3,5.75903]
[1748460969665,3.2078,2635.0,2634.9,0.75886]
[1748460970069,1.3159,2635.2,2634.7,3.2078]
[1748460970273,3.2078,2635.3,2635.2,0.75877]
[1748460970773,5.28809184,2635.5,2634.8,1.3092]
[1748460970972,0.75875,2635.3,2635.0,0.75881]
[1748460971174,0.75872,2635.4,2635.1,2.02768]
[1748460971375,1.257,2635.3,2635.1,2.02767]
[1748460971674,1.257,2635.3,2634.7,3.2078]
[1748460971881,0.7589,2634.8,2634.6,2.02783]
[1748460972080,1.257,2634.7,2634.6,2.02784]
[1748460972572,2.01591,2634.7,2634.6,1.2689]
[1748460972878,1.257,2634.7,2634.6,0.75894]
[1748460973078,1.257,2634.7,2634.5,0.07463908]
[1748460973377,2.01592,2634.7,2634.5,0.07463908]
[1748460973573,0.75894,2634.6,2634.5,0.07463908]
[1748460973783,5.22374,2634.6,2634.5,0.07463908]
[1748460975977,0.75911,2634.0,2633.9,0.00569184]
[1748460976670,2.08581,2634.0,2633.9,0.00569184]
[1748460977075,1.3267,2634.0,2633.9,0.00569184]
[1748460977280,3.2078,2634.1,2633.9,0.00569184]
[1748460977582,3.9669,2634.1,2633.9,0.00569184]
[1748460977873,0.75911,2634.0,2633.9,0.00569184]
[1748460978079,0.75911,2634.0,2633.9,1.32629184]
[1748460978278,2.11101,2634.0,2633.9,1.32629184]
[1748460979181,2.11101,2634.0,2633.9,0.00569184]
[1748460980280,2.11101,2634.0,2633.9,0.08033092]
[1748460980880,2.11101,2634.0,2633.9,1.33173092]
[1748460981580,1.3519,2634.0,2633.9,2.09087092]
[1748460981780,2.11101,2634.0,2633.9,2.09087092]
[1748460981988,1.3519,2634.0,2633.9,2.09087092]
[1748460982178,3.9669,2634.1,2634.0,0.75911]
[1748460982382,3.9669,2634.1,2633.9,1.33173092]
[1748460982383,0.75911,2634.0,2633.9,0.08033092]
[1748460982676,2.08751,2634.0,2633.9,0.08033092]
[1748460984084,2.08751,2634.0,2633.2,0.6438]
[1748460984085,3.7961,2633.7,2632.6,3.2078]
[1748460984276,3.2078,2633.0,2632.6,1.3254]
[1748460984585,0.75949,2632.7,2632.6,1.3254]
[1748460984783,0.75947,2632.8,2632.6,2.0849]
[1748460984981,0.75947,2632.8,2632.7,1.3254]
[1748460985684,0.75955,2632.5,2632.4,0.63479184]
[1748460985988,0.75952,2632.6,2632.5,0.75955]
[1748460986182,0.75952,2632.6,2632.5,1.2365]
[1748460986391,3.2078,2632.8,2632.5,1.2365]
[1748460986593,0.75952,2632.6,2632.5,1.99603]
[1748460986792,0.75955,2632.5,2632.4,0.00569184]
[1748460986981,5.31385,2632.5,2632.4,0.00569184]
[1748460987180,3.96735,2632.5,2632.4,0.00569184]
[1748460987474,3.96735,2632.5,2632.4,1.24219184]
[1748460987982,3.96735,2632.5,2632.4,2.00176184]
[1748460988185,3.2078,2632.8,2632.4,1.24219184]
[1748460988386,3.96727,2632.8,2632.4,1.24219184]
[1748460988687,0.75955,2632.5,2632.4,2.00175184]
[1748460989084,1.3465,2632.7,2632.4,0.00569184]
[1748460989285,3.96735,2632.5,2632.4,0.00569184]
[1748460990686,50.5448,2632.5,2630.6,2.99806909]
[1748460990897,41.75167,2633.7,2628.4,3.79]
[1748460990898,3.2078,2630.7,2628.8,3.74683765]
[1748460991197,3.2078,2629.5,2629.2,1.2993]
[1748460991394,3.2078,2629.8,2629.2,1.2993]
[1748460991589,3.2078,2630.1,2629.3,7.3958]
[1748460991892,0.00570396,2630.0,2629.4,0.07606298]
[1748460992084,3.2078,2629.8,2629.4,0.07606298]
[1748460992289,3.2078,2629.8,2629.7,0.76035]
[1748460992785,3.2078,2629.8,2629.7,9.94835]
[1748460992989,3.2078,2629.8,2629.7,4.94835]
[1748460993185,0.00570396,2630.0,2629.9,0.7603]
[1748460993590,3.2078,2629.2,2627.1,3.2078]
[1748460993891,3.2078,2628.6,2628.1,0.0761006]
[1748460994081,3.21350396,2628.6,2628.1,0.7482006]
[1748460994394,3.2078,2628.5,2628.1,0.7482006]
[1748460994595,3.2078,2628.2,2628.1,1.5090206]
[1748460994899,3.2078,2628.5,2628.4,0.76073]
[1748460995095,3.2078,2628.5,2628.4,0.83682191]
[1748460995293,3.2078,2628.5,2628.4,0.07609191]
[1748460995590,3.2078,2628.5,2628.4,5.87582191]
[1748460995794,1.40581,2629.9,2628.6,1.90168]
[1748460995983,3.2078,2629.1,2628.4,0.07609191]
[1748460996299,1.2421,2629.8,2628.7,0.76063]
[1748460996300,3.2078,2628.8,2628.7,0.76063]
[1748460996495,3.2078,2628.8,2628.3,5.039]
[1748460996693,3.2078,2628.8,2628.7,0.76064]
[1748460996987,3.21350396,2628.8,2628.7,0.76064]
[1748460997194,3.21350396,2628.8,2628.3,6.94660396]
[1748460997195,3.21350396,2628.8,2628.6,0.76066]
[1748460997392,3.21350396,2628.8,2628.3,0.00570396]
[1748460997591,3.2078,2628.5,2628.3,0.00570396]
[1748460997787,3.2078,2628.5,2628.4,0.76073]
[1748460998185,3.96851,2628.5,2628.3,0.00570396]
[1748460998391,2.01703,2628.4,2628.3,0.00570396]
[1748460998790,1.2563,2628.4,2628.3,0.00570396]
[1748460998990,3.2078,2628.5,2628.3,0.00570396]
[1748460998991,3.2078,2628.5,2628.4,0.76073]
[1748460999291,3.2078,2628.5,2628.4,2.04703]
[1748461000385,3.2078,2628.5,2628.4,1.2863]
[1748461000595,4.4641,2628.5,2628.4,2.04703]
[1748461001595,4.4641,2628.5,2628.4,0.76073]
[1748461002190,3.2078,2628.5,2628.4,0.76073]
[1748461002389,0.1141,2628.6,2628.5,0.7607]
[1748461006192,0.5706,2628.7,2628.6,0.76067]
[1748461006396,3.96e-06,2628.8,2628.7,0.76064]
[1748461006592,3.96e-06,2628.8,2628.7,25.44664]
[1748461006793,3.96e-06,2628.8,2628.7,30.44664]
[1748461007395,1.89953,2631.6,2630.7,0.76005]
[1748461007595,1.2431,2630.8,2630.7,0.76005]
[1748461007802,0.114,2631.0,2630.7,3.96785]
[1748461008004,0.114,2631.0,2630.9,0.76001]
[1748461008496,0.114,2631.0,2630.8,2.00451]
[1748461008696,0.76004,2630.8,2630.7,0.00570396]
[1748461009091,5.0,2630.8,2629.9,3.2078]
[1748461009306,6.35111,2630.7,2630.1,0.76023]
[1748461009497,6.35111,2630.7,2630.1,0.76024]
[1748461009697,0.76018,2630.3,2630.0,5.044]
[1748461009901,1.2431,2630.2,2630.1,0.76024]
[1748461010201,1.2431,2630.2,2630.0,5.044]
[1748461010202,2.00334,2630.2,2630.0,5.80425]
[1748461010400,2.00334,2630.2,2630.1,0.76024]
[1748461010706,1.2431,2630.2,2630.1,0.76024]
[1748461010896,2.00331,2630.2,2630.0,5.80426]
[1748461011090,2.00331,2630.2,2630.1,0.76024]
[1748461011598,1.2431,2630.2,2630.1,0.76024]
[1748461012197,1.2431,2630.2,2630.0,5.80425]
[1748461012198,2.00331,2630.2,2630.0,5.80425]
[1748461012404,2.00331,2630.2,2630.1,0.76024]
[1748461012798,1.2431,2630.2,2630.0,5.80426]
[1748461012999,2.00332,2630.2,2630.1,0.76024]
[1748461013506,0.76024,2630.1,2630.0,5.044]
[1748461013809,1.99244,2630.1,2630.0,5.044]
[1748461014199,0.76027,2630.0,2629.9,3.21350396]
[1748461014400,1.99247,2630.0,2629.9,0.00570396]
[1748461015303,3.2078,2631.1,2629.9,8.25750396]
[1748461015503,0.76016,2630.4,2630.3,3.2078]
[1748461015806,0.76015,2630.5,2630.4,0.76015]
[1748461016400,0.76008,2630.7,2630.1,1.90061]
[1748461016607,3.2078,2630.8,2630.3,3.2078]
[1748461016806,3.2078,2630.8,2630.4,6.3049]
[1748461017209,3.96786,2630.8,2630.7,0.76007]
[1748461017511,3.96786,2630.8,2630.4,8.20526]
[1748461017512,0.1534,2631.0,2630.5,1.90032]
[1748461017804,0.76011,2630.6,2630.5,0.7601]
[1748461018008,2.05338,2631.0,2630.4,5.043]
[1748461018207,0.7601,2630.7,2630.6,0.76009]
[1748461018413,0.76012,2630.5,2630.4,5.80313]
[1748461018706,5.10783,2630.9,2630.4,5.043]
[1748461018902,0.76012,2630.6,2630.5,0.76008]
[1748461019616,0.76011,2630.6,2630.5,0.76012]
[1748461019813,0.76012,2630.5,2630.4,5.043]
[1748461020111,5.10813,2630.5,2629.9,0.00570396]
[1748461020411,0.76027,2630.0,2629.9,0.00570396]
[1748461020807,0.76027,2630.0,2629.9,0.76600396]
[1748461021007,0.76027,2630.0,2629.9,0.00570396]
[1748461021203,0.76027,2630.0,2629.9,0.76600396]
[1748461021403,0.76027,2630.0,2629.9,0.00570396]
[1748461021610,1.3129,2630.4,2629.9,0.00570396]
[1748461021805,0.76027,2630.0,2629.9,0.00570396]
[1748461022512,0.76025,2630.1,2629.9,0.00570396]
[1748461022714,3.21331,2630.4,2629.9,0.00570396]
[1748461022715,0.76027,2630.0,2629.9,0.00570396]
[1748461023105,0.76027,2630.0,2629.2,5.043]
[1748461023106,1.90091,2629.7,2629.2,5.043]
[1748461023310,3.2078,2629.5,2628.8,3.2078]
[1748461023504,0.76059,2628.9,2628.8,3.2078]
[1748461024609,0.76067,2628.6,2628.5,3.2078]
[1748461024915,0.00570396,2629.1,2628.6,0.76064]
[1748461024916,0.76065,2628.7,2628.6,0.76064]
[1748461025212,0.76057,2629.0,2628.9,0.76057]
[1748461025400,0.00570396,2629.1,2628.6,1.3272]
[1748461025600,0.00570396,2629.1,2629.0,0.76056]
[1748461025810,0.00570396,2629.1,2629.0,3.96836]
[1748461026316,0.76623396,2629.1,2629.0,3.96836]
[1748461026507,0.00570396,2629.1,2629.0,3.96836]
[1748461027206,0.00570396,2629.1,2629.0,3.2078]
[1748461027507,0.00570396,2629.1,2629.0,0.76056]
[1748461027909,0.76623396,2629.1,2629.0,0.76056]
[1748461028110,0.00570396,2629.1,2629.0,0.76056]
[1748461028309,0.76059,2628.9,2628.8,1.2656]
[1748461028607,0.00570396,2629.1,2628.3,1.90188]
[1748461028608,0.76073,2628.4,2628.3,3.2078]
[1748461028807,3.2078,2629.0,2628.0,3.55402004]
[1748461029007,0.00570396,2629.1,2628.7,0.76063]
[1748461029008,1.4264,2628.9,2628.7,0.76063]
[1748461029208,0.00570396,2629.1,2629.0,0.76056]
[1748461029607,0.76623396,2629.1,2629.0,3.2078]
[1748461029805,0.00570396,2629.1,2629.0,3.96836]
[1748461030114,0.00570396,2629.1,2629.0,10.31156]
[1748461030317,0.76041,2629.6,2629.5,0.76041]
[1748461030517,3.96817,2629.7,2629.6,0.76038]
[1748461030916,0.76039,2629.6,2629.5,0.7604]
[1748461031105,3.2078,2629.7,2629.4,6.3762]
[1748461031310,3.96815,2629.7,2629.6,0.76038]
[1748461031617,0.00570396,2629.8,2629.7,0.76035]
[1748461031915,0.76037,2629.7,2629.6,0.76038]
[1748461032316,0.76037,2629.7,2629.4,6.3762]
[1748461032317,0.76039,2629.6,2629.5,0.76039]
[1748461032518,0.76037,2629.7,2629.6,0.76038]
[1748461032721,0.00570396,2629.8,2629.5,0.76039]
[1748461032913,0.76605396,2629.8,2629.7,0.76035]
[1748461033115,0.00570396,2629.8,2629.7,0.76035]
[1748461033314,0.00570396,2629.8,2629.7,1.99505]
[1748461034211,0.00570396,2629.8,2629.7,6.99505]
[1748461034408,0.00570396,2629.8,2629.7,1.99505]
[1748461035622,0.00570396,2629.8,2629.7,21.41505]
[1748461036617,0.00570396,2629.8,2629.6,3.2078]
[1748461036816,0.76044,2629.4,2629.3,0.00570396]
[1748461037728,1.2778,2629.4,2629.3,0.76617396]
[1748461037921,2.03824,2629.4,2629.3,0.76617396]
[1748461038229,2.03824,2629.4,2629.3,0.00570396]
[1748461039029,2.03824,2629.4,2629.3,0.76617396]
[1748461039224,2.03824,2629.4,2629.3,0.00570396]
[1748461042135,1.2778,2629.4,2629.3,0.76617396]
[1748461042335,3.21350396,2629.8,2629.3,0.76617396]
[1748461042336,0.00570396,2629.8,2629.6,0.76037]
[1748461042546,0.76038,2629.7,2629.6,0.76037]
[1748461042731,0.76044,2629.4,2629.3,3.21350396]
[1748461042936,0.76041,2629.5,2629.3,3.21350396]
[1748461043244,0.76605396,2629.8,2629.7,0.76035]
[1748461043632,0.76041,2629.6,2629.4,1.2755]
[1748461043838,0.76037,2629.7,2629.6,0.76035]
[1748461044143,0.76037,2629.7,2629.6,0.29257956]
[1748461044443,0.76044,2629.5,2629.4,5.79442]
[1748461044744,0.76044,2629.5,2629.4,6.0870055]
[1748461044945,0.76044,2629.5,2629.4,6.0870066]
[1748461045244,0.76044,2629.5,2629.4,6.09603469]
[1748461045440,2.09199,2629.6,2629.5,0.76041]
[1748461045646,2.09199,2629.6,2629.5,1.05303185]
[1748461045844,2.09199,2629.6,2629.5,0.29262185]
[1748461046338,0.76041,2629.5,2629.4,0.0090291]
[1748461046641,0.76041,2629.5,2629.4,0.30175625]
[1748461046642,2.09201,2629.5,2629.4,0.30175625]
[1748461046952,2.09201,2629.5,2629.4,0.30175861]
[1748461047242,2.09201,2629.5,2629.4,0.30175698]
[1748461047848,2.09201,2629.5,2629.4,0.0090291]
[1748461048442,2.09201,2629.5,2629.4,1.06231354]
[1748461048643,1.3316,2629.5,2629.4,1.06231354]
[1748461048843,0.00570396,2629.8,2629.7,0.76034]
[1748461049034,2.02791396,2629.8,2629.7,0.76034]
[1748461049234,1.26760396,2629.8,2629.7,1.05332744]
[1748461049545,2.02791396,2629.8,2629.7,1.05332744]
[1748461049745,0.00570396,2629.8,2629.7,4.26129317]
[1748461049939,0.00570396,2629.8,2629.7,28.48127091]
[1748461050139,0.00570396,2629.8,2629.7,29.09616699]
[1748461050346,0.00570396,2629.8,2629.7,9.8761205]
[1748461051142,0.00570396,2629.8,2629.7,9.87617632]
[1748461051442,0.00570396,2629.8,2629.7,9.8761793]
[1748461051747,0.76601396,2629.8,2629.7,3.5008991]
[1748461051940,2.04331396,2629.8,2629.7,3.5008991]
[1748461052244,0.76037,2629.6,2629.5,5.034]
[1748461052435,0.76037,2629.6,2629.5,6.08754213]
[1748461052638,0.76037,2629.6,2629.5,5.32714213]
[1748461052834,2.03767,2629.6,2629.5,5.32714563]
[1748461053037,2.03767,2629.6,2629.5,0.29314563]
[1748461053234,0.7604,2629.5,2629.4,0.0090291]
[1748461053440,2.0972,2629.5,2629.4,0.30219545]
[1748461053646,2.0972,2629.5,2629.4,0.30219341]
[1748461053946,2.0972,2629.5,2629.4,0.7694591]
[1748461054139,2.0972,2629.5,2629.4,1.06264928]
[1748461054336,2.0972,2629.5,2629.4,0.3022642]
[1748461054543,2.0972,2629.5,2629.4,0.0090291]
[1748461054846,1.416,2629.5,2629.4,0.7694591]
[1748461055038,1.416,2629.5,2629.4,1.06270467]
[1748461055240,2.1764,2629.5,2629.4,1.06277729]
[1748461055546,2.1764,2629.5,2629.4,1.06277671]
[1748461055741,2.1764,2629.5,2629.4,0.7694591]
[1748461056049,2.1764,2629.5,2629.4,0.30234765]
[1748461056250,2.1764,2629.5,2629.4,0.30233868]
[1748461056546,2.1764,2629.5,2629.4,1.06279279]
[1748461056747,2.1764,2629.5,2629.4,1.0627928]
[1748461057046,2.1764,2629.5,2629.4,0.3023628]
[1748461057235,2.1764,2629.5,2629.4,0.30236245]
[1748461057436,2.1764,2629.5,2629.4,0.0090291]
[1748461057638,2.1764,2629.5,2629.4,1.06280977]
[1748461058138,2.1764,2629.5,2629.4,1.0628096]
[1748461058448,2.1764,2629.5,2629.4,0.30239356]
[1748461058642,2.1764,2629.5,2629.4,0.0090291]
[1748461059043,2.1764,2629.5,2629.4,0.30239759]
[1748461059252,0.0792,2629.5,2629.4,1.06300571]
[1748461059549,0.0792,2629.5,2629.4,2.0044591]
[1748461059749,0.0792,2629.5,2629.4,2.29799316]
[1748461059948,0.0792,2629.5,2629.4,2.2979895]
[1748461060746,0.00570396,2629.8,2629.5,0.7604]
[1748461061049,0.00570396,2629.8,2629.7,3.96815]
[1748461061246,0.00570396,2629.8,2629.7,9.07464769]
[1748461061441,0.00570396,2629.8,2629.7,10.09355]
[1748461061643,0.00570396,2629.8,2629.7,10.38704509]
[1748461061845,0.00570396,2629.8,2629.7,15.38704509]
[1748461062241,0.00570396,2629.8,2629.7,15.38704168]
[1748461062448,5.10762,2631.2,2630.0,3.80122]
[1748461062649,1.2401,2630.9,2630.8,0.76003]
[1748461062849,0.75995,2631.1,2631.0,0.75997]
[1748461063043,0.75997,2631.0,2630.9,2.02809]
[1748461063353,1.2401,2631.0,2630.9,2.3211213]
[1748461063554,1.2401,2631.0,2630.9,2.32112104]
[1748461063848,0.11970396,2631.2,2631.1,0.75994]
[1748461064051,1.35980396,2631.2,2631.1,0.29302456]
[1748461064251,2.11971396,2631.2,2631.1,0.29302456]
[1748461064551,0.75997,2631.0,2630.9,1.2681]
[1748461064756,0.75996,2631.1,2631.0,0.75996]
[1748461064952,0.75996,2631.1,2631.0,1.05270459]
[1748461065254,1.35980396,2631.2,2631.1,0.75994]
[1748461065554,0.11970396,2631.2,2631.1,5.24534]
[1748461065751,0.11970396,2631.2,2631.1,5.53780855]
[1748461065961,0.11970396,2631.2,2631.1,5.53780782]
[1748461066254,0.11970396,2631.2,2631.1,5.53777471]
[1748461066753,0.11970396,2631.2,2631.1,5.53775969]
[1748461066951,0.11970396,2631.2,2631.1,4.4854]
[1748461067147,0.87961396,2631.2,2631.1,4.26016831]
[1748461067346,0.11970396,2631.2,2631.1,3.96774]
[1748461067641,0.11970396,2631.2,2631.1,5.53748062]
[1748461067848,0.11970396,2631.2,2631.1,5.53748208]
[1748461068050,0.11970396,2631.2,2631.1,4.77753045]
[1748461068359,0.87961396,2631.2,2631.1,0.29210666]
[1748461068659,0.75994,2631.1,2631.0,0.29274456]
[1748461068950,2.67204,2631.1,2631.0,0.58477392]
[1748461069555,2.67204,2631.1,2631.0,0.58472385]
[1748461069758,2.67204,2631.1,2631.0,0.58472524]
[1748461070053,2.67204,2631.1,2631.0,0.58472383]
[1748461070355,2.67204,2631.1,2631.0,0.58470412]
[1748461070658,2.67204,2631.1,2631.0,0.58470116]